Workbook

Sheet Info
A1: GIS Stage Storage.xlsm V1.1
A2: 2021-01-26
A4: Description:
A5: This spreadsheet processes Elevation vs Pool area data files (.txt) created from ArcMap and converts the data into formats useable in the WinPond and SITES programs, or into a spreadsheet (.CSV) file.
A7: It can also take Station vs Elevation cross section data for the centerline of dam and format it for earthwork quantity calculations in WinPond. This data can be pulled from a cross section file exported from ArcMap.
A9: How to Use:
A10: 1. Click Enable Content for Macros.
A11: 2. In the Stage Storage tab, click Import Elev vs Area from ArcGIS to bring in data that was exported from GIS. A csv file is needed. The file needs Elevation (feet) in the 9th column, and Area (Sq Ft) in the 11th column. [In Arc Toolbox use NRCS Engineering Tools -- Watershed Tools ---Watershed Shed Storage --- Calculate Stage Storage tool to create a Stage Storage Table. Open the table and Export Data as a text file using a .csv extension.]
A12: 3. Optional: Use the CL Cross Section tab for importing the ground data along the CL. A cross section csv file is needed. The file needs Station (Feet) in the 3rd column and Elevation (Feet) in the 6th column. [In Arc Toolbox use NRCS Engineering Tools -- Field Office Tools ---Create Cross Section/Profiles tool to create a XYZ Points layer. Open the attribute table and Export Data as a text file using a .csv extension.]
A13: 4. On the Stage Storage tab, enter the lowest elevation of the surface since this data was not exported from GIS. This elevation is typically the ditch bottom elevation along the CL of the dam. GIS tools might skip this low point so review your data when setting this.
A14: 5. Verify or update the WinPond values that you would like to have exported for this project.
A15: 6. Click the Export Data button and select the export format that you want to use.
A17: Limitations:
A18: SITES is limited to 20 elevation vs pool area data points
A19: WinPond is limited to 50 CL ground points of station vs elevation
A20: Depending on the spacing used, creating a CL cross section from a DEM might skip over the true low point.
A22: Spreadsheet Tab descriptions
A23: Info - Gives the user basic instructions and background information
A24: Stage Storage - The resulting Stage Storage information is displayed here. The user will run the Import and Export processes from this tab.
A25: CL Cross Section - Station vs elevation is processed here in order to be exported to WinPond.
A26: CL GIS - Station vs elevation data that is imported from GIS will be placed here.
A27: GIS Ouput -Data that is exported from GIS is automatically placed here for processing.
A28: Sheet 5- Incremental and Total storage computations are done here.
A29: Sheet 1 & Sheet 3- Hidden tabs used for accumulating the areas and sorting the data.
A31: Program support:
A32: State Conservation Engineer
A33: USDA Natural Resources Conservation Service
A34: 210 Walnut St, Room 693
A35: Des Moines, Iowa 50309-2180
A36: (515) 284-4135
A38: Updates
A39: v1.1
A40: Removed the default WinPond entries for county and rainfall distribution due to NOAA Atlas 14 options. The user will select the county from the dropdown list in WinPond.
A42: v1.0
A43: Based on CAD Stage Storage.xlsm v1.0

Sheet Stage Storage
A1: =Info!A1 -> GIS Stage Storage.xlsm V1.1 | F1: Title:
F2: Project:
F3: Basin Description:
B5: Designed By: | G5: Checked By: | P5: Square Feet & Cubic Feet
B6: Designed By Date: | G6: Checked By Date: | P6: Acres & Acre Feet
M7: =IF(MIN('CL Cross Section'!C8:C107)=0,"No Cross Section Data is present","Lowest elevation on the Cross Section is:") -> No Cross Section Data is present | N7: =IF(ISBLANK('CL Cross Section'!C5),"",'CL Cross Section'!C5) -> 
E8: Stage-Storage Results | L8: Lowest Elevation of Surface= | M8: 1148.6 | P8: Square Feet & Cubic Feet
C9: Average End Area | H9: Prismoidal | J9: =IF(M8>A14,"Caution: Please input a lower elevation",IF(M8>0,"","Caution: Enter a value greater than 0")) -> 
A10: Elev | B10: Area | C10: Incremental Storage | D10: Cummulative Storage | F10: Elev | G10: Area | H10: Incremental Storage | I10: Cummulative Storage | N10: =IF((N7=""),"",(IF(ABS(N7-A14)>12,"Caution: The cross section is >10' apart from the stage storage",""))) -> 
A12: (Ft) | B12: (Acres) | C12: (Ac-Ft) | D12: (Ac-Ft) | F12: (Ft) | G12: (Sq Feet) | H12: (Cu Feet) | I12: (Cu Feet)
A13: =IF(Sheet5!D4,Sheet5!A4,"") -> 1148.6 | B13: =IF(Sheet5!D4,Sheet5!P4,"") -> 0 | C13: =IF(Sheet5!D4,Sheet5!R4,"") -> 0 | D13: =IF(Sheet5!D4,Sheet5!S4,"") -> 0 | F13: =IF(Sheet5!D4,Sheet5!A4,"") -> 1148.6 | G13: =IF(Sheet5!D4,Sheet5!B4,"") -> 0 | H13: =IF(Sheet5!D4,Sheet5!J4,"") -> 0 | I13: =IF(Sheet5!D4,Sheet5!K4,"") -> 0
A14: =IF(Sheet5!D5,Sheet5!A5,"") -> 1149 | B14: =IF(Sheet5!D5,Sheet5!P5,"") -> 0.01 | C14: =IF(Sheet5!D5,Sheet5!R5,"") -> 0 | D14: =IF(Sheet5!D5,Sheet5!S5,"") -> 0 | F14: =IF(Sheet5!D5,Sheet5!A5,"") -> 1149 | G14: =IF(Sheet5!D5,Sheet5!B5,"") -> 608 | H14: =IF(Sheet5!D5,Sheet5!J5,"") -> 81 | I14: =IF(Sheet5!D5,Sheet5!K5,"") -> 81 | N14: Defaults for WinPond Export
A15: =IF(Sheet5!D6,Sheet5!A6,"") -> 1150 | B15: =IF(Sheet5!D6,Sheet5!P6,"") -> 0.05 | C15: =IF(Sheet5!D6,Sheet5!R6,"") -> 0.03 | D15: =IF(Sheet5!D6,Sheet5!S6,"") -> 0.03 | F15: =IF(Sheet5!D6,Sheet5!A6,"") -> 1150 | G15: =IF(Sheet5!D6,Sheet5!B6,"") -> 2264 | H15: =IF(Sheet5!D6,Sheet5!J6,"") -> 1348 | I15: =IF(Sheet5!D6,Sheet5!K6,"") -> 1429
A16: =IF(Sheet5!D7,Sheet5!A7,"") -> 1151 | B16: =IF(Sheet5!D7,Sheet5!P7,"") -> 0.21 | C16: =IF(Sheet5!D7,Sheet5!R7,"") -> 0.13 | D16: =IF(Sheet5!D7,Sheet5!S7,"") -> 0.16 | F16: =IF(Sheet5!D7,Sheet5!A7,"") -> 1151 | G16: =IF(Sheet5!D7,Sheet5!B7,"") -> 9307 | H16: =IF(Sheet5!D7,Sheet5!J7,"") -> 5387 | I16: =IF(Sheet5!D7,Sheet5!K7,"") -> 6816 | M16: State | N16: Iowa
A17: =IF(Sheet5!D8,Sheet5!A8,"") -> 1152 | B17: =IF(Sheet5!D8,Sheet5!P8,"") -> 0.59 | C17: =IF(Sheet5!D8,Sheet5!R8,"") -> 0.4 | D17: =IF(Sheet5!D8,Sheet5!S8,"") -> 0.56 | F17: =IF(Sheet5!D8,Sheet5!A8,"") -> 1152 | G17: =IF(Sheet5!D8,Sheet5!B8,"") -> 25769 | H17: =IF(Sheet5!D8,Sheet5!J8,"") -> 16854 | I17: =IF(Sheet5!D8,Sheet5!K8,"") -> 23670
A18: =IF(Sheet5!D9,Sheet5!A9,"") -> 1153 | B18: =IF(Sheet5!D9,Sheet5!P9,"") -> 0.94 | C18: =IF(Sheet5!D9,Sheet5!R9,"") -> 0.77 | D18: =IF(Sheet5!D9,Sheet5!S9,"") -> 1.33 | F18: =IF(Sheet5!D9,Sheet5!A9,"") -> 1153 | G18: =IF(Sheet5!D9,Sheet5!B9,"") -> 40977 | H18: =IF(Sheet5!D9,Sheet5!J9,"") -> 33080 | I18: =IF(Sheet5!D9,Sheet5!K9,"") -> 56750 | M18: Designer | N18: CF
A19: =IF(Sheet5!D10,Sheet5!A10,"") -> 1154 | B19: =IF(Sheet5!D10,Sheet5!P10,"") -> 1.26 | C19: =IF(Sheet5!D10,Sheet5!R10,"") -> 1.1 | D19: =IF(Sheet5!D10,Sheet5!S10,"") -> 2.43 | F19: =IF(Sheet5!D10,Sheet5!A10,"") -> 1154 | G19: =IF(Sheet5!D10,Sheet5!B10,"") -> 54984 | H19: =IF(Sheet5!D10,Sheet5!J10,"") -> 47809 | I19: =IF(Sheet5!D10,Sheet5!K10,"") -> 104559
A20: =IF(Sheet5!D11,Sheet5!A11,"") -> 1155 | B20: =IF(Sheet5!D11,Sheet5!P11,"") -> 1.65 | C20: =IF(Sheet5!D11,Sheet5!R11,"") -> 1.46 | D20: =IF(Sheet5!D11,Sheet5!S11,"") -> 3.89 | F20: =IF(Sheet5!D11,Sheet5!A11,"") -> 1155 | G20: =IF(Sheet5!D11,Sheet5!B11,"") -> 72077 | H20: =IF(Sheet5!D11,Sheet5!J11,"") -> 63338 | I20: =IF(Sheet5!D11,Sheet5!K11,"") -> 167897 | M20: Upstream Embankment Slope, Z:1 | N20: 3
A21: =IF(Sheet5!D12,Sheet5!A12,"") -> 1156 | B21: =IF(Sheet5!D12,Sheet5!P12,"") -> 2.12 | C21: =IF(Sheet5!D12,Sheet5!R12,"") -> 1.89 | D21: =IF(Sheet5!D12,Sheet5!S12,"") -> 5.78 | F21: =IF(Sheet5!D12,Sheet5!A12,"") -> 1156 | G21: =IF(Sheet5!D12,Sheet5!B12,"") -> 92400 | H21: =IF(Sheet5!D12,Sheet5!J12,"") -> 82028 | I21: =IF(Sheet5!D12,Sheet5!K12,"") -> 249925 | M21: Downstream Embankment Slope, Z:1 | N21: 3
A22: =IF(Sheet5!D13,Sheet5!A13,"") -> 1157 | B22: =IF(Sheet5!D13,Sheet5!P13,"") -> 2.62 | C22: =IF(Sheet5!D13,Sheet5!R13,"") -> 2.37 | D22: =IF(Sheet5!D13,Sheet5!S13,"") -> 8.15 | F22: =IF(Sheet5!D13,Sheet5!A13,"") -> 1157 | G22: =IF(Sheet5!D13,Sheet5!B13,"") -> 114334 | H22: =IF(Sheet5!D13,Sheet5!J13,"") -> 103173 | I22: =IF(Sheet5!D13,Sheet5!K13,"") -> 353098 | M22: Embankment Top Width, Feet | N22: 12
A23: =IF(Sheet5!D14,Sheet5!A14,"") -> 1158 | B23: =IF(Sheet5!D14,Sheet5!P14,"") -> 3.15 | C23: =IF(Sheet5!D14,Sheet5!R14,"") -> 2.89 | D23: =IF(Sheet5!D14,Sheet5!S14,"") -> 11.04 | F23: =IF(Sheet5!D14,Sheet5!A14,"") -> 1158 | G23: =IF(Sheet5!D14,Sheet5!B14,"") -> 137124 | H23: =IF(Sheet5!D14,Sheet5!J14,"") -> 125557 | I23: =IF(Sheet5!D14,Sheet5!K14,"") -> 478655 | M23: Embankment Settlement, % | N23: 5
A24: =IF(Sheet5!D15,Sheet5!A15,"") -> 1159 | B24: =IF(Sheet5!D15,Sheet5!P15,"") -> 3.72 | C24: =IF(Sheet5!D15,Sheet5!R15,"") -> 3.44 | D24: =IF(Sheet5!D15,Sheet5!S15,"") -> 14.48 | F24: =IF(Sheet5!D15,Sheet5!A15,"") -> 1159 | G24: =IF(Sheet5!D15,Sheet5!B15,"") -> 161989 | H24: =IF(Sheet5!D15,Sheet5!J15,"") -> 149384 | I24: =IF(Sheet5!D15,Sheet5!K15,"") -> 628039 | M24: Stripping Depth, Feet | N24: 0.5
A25: =IF(Sheet5!D16,Sheet5!A16,"") -> 1160 | B25: =IF(Sheet5!D16,Sheet5!P16,"") -> 4.3 | C25: =IF(Sheet5!D16,Sheet5!R16,"") -> 4.01 | D25: =IF(Sheet5!D16,Sheet5!S16,"") -> 18.49 | F25: =IF(Sheet5!D16,Sheet5!A16,"") -> 1160 | G25: =IF(Sheet5!D16,Sheet5!B16,"") -> 187351 | H25: =IF(Sheet5!D16,Sheet5!J16,"") -> 174516 | I25: =IF(Sheet5!D16,Sheet5!K16,"") -> 802555 | M25: Core Trench Bottom Width, Feet | N25: 12
A26: =IF(Sheet5!D17,Sheet5!A17,"") -> 1161 | B26: =IF(Sheet5!D17,Sheet5!P17,"") -> 4.87 | C26: =IF(Sheet5!D17,Sheet5!R17,"") -> 4.59 | D26: =IF(Sheet5!D17,Sheet5!S17,"") -> 23.08 | F26: =IF(Sheet5!D17,Sheet5!A17,"") -> 1161 | G26: =IF(Sheet5!D17,Sheet5!B17,"") -> 212322 | H26: =IF(Sheet5!D17,Sheet5!J17,"") -> 199706 | I26: =IF(Sheet5!D17,Sheet5!K17,"") -> 1002261 | M26: Core Trench Bottom Depth Feet | N26: 4
A27: =IF(Sheet5!D18,Sheet5!A18,"") -> 1162 | B27: =IF(Sheet5!D18,Sheet5!P18,"") -> 5.43 | C27: =IF(Sheet5!D18,Sheet5!R18,"") -> 5.15 | D27: =IF(Sheet5!D18,Sheet5!S18,"") -> 28.23 | F27: =IF(Sheet5!D18,Sheet5!A18,"") -> 1162 | G27: =IF(Sheet5!D18,Sheet5!B18,"") -> 236542 | H27: =IF(Sheet5!D18,Sheet5!J18,"") -> 224323 | I27: =IF(Sheet5!D18,Sheet5!K18,"") -> 1226584 | M27: Core Trench Side Slope, Z:1 | N27: 1.5
A28: =IF(Sheet5!D19,Sheet5!A19,"") -> 1163 | B28: =IF(Sheet5!D19,Sheet5!P19,"") -> 5.99 | C28: =IF(Sheet5!D19,Sheet5!R19,"") -> 5.71 | D28: =IF(Sheet5!D19,Sheet5!S19,"") -> 33.94 | F28: =IF(Sheet5!D19,Sheet5!A19,"") -> 1163 | G28: =IF(Sheet5!D19,Sheet5!B19,"") -> 260856 | H28: =IF(Sheet5!D19,Sheet5!J19,"") -> 248600 | I28: =IF(Sheet5!D19,Sheet5!K19,"") -> 1475184
A29: =IF(Sheet5!D20,Sheet5!A20,"") -> 1164 | B29: =IF(Sheet5!D20,Sheet5!P20,"") -> 6.57 | C29: =IF(Sheet5!D20,Sheet5!R20,"") -> 6.28 | D29: =IF(Sheet5!D20,Sheet5!S20,"") -> 40.22 | F29: =IF(Sheet5!D20,Sheet5!A20,"") -> 1164 | G29: =IF(Sheet5!D20,Sheet5!B20,"") -> 286181 | H29: =IF(Sheet5!D20,Sheet5!J20,"") -> 273421 | I29: =IF(Sheet5!D20,Sheet5!K20,"") -> 1748605
A30: =IF(Sheet5!D21,Sheet5!A21,"") -> 1165 | B30: =IF(Sheet5!D21,Sheet5!P21,"") -> 7.18 | C30: =IF(Sheet5!D21,Sheet5!R21,"") -> 6.88 | D30: =IF(Sheet5!D21,Sheet5!S21,"") -> 47.1 | F30: =IF(Sheet5!D21,Sheet5!A21,"") -> 1165 | G30: =IF(Sheet5!D21,Sheet5!B21,"") -> 312628 | H30: =IF(Sheet5!D21,Sheet5!J21,"") -> 299307 | I30: =IF(Sheet5!D21,Sheet5!K21,"") -> 2047912
A31: =IF(Sheet5!D22,Sheet5!A22,"") -> 1166 | B31: =IF(Sheet5!D22,Sheet5!P22,"") -> 7.84 | C31: =IF(Sheet5!D22,Sheet5!R22,"") -> 7.51 | D31: =IF(Sheet5!D22,Sheet5!S22,"") -> 54.61 | F31: =IF(Sheet5!D22,Sheet5!A22,"") -> 1166 | G31: =IF(Sheet5!D22,Sheet5!B22,"") -> 341480 | H31: =IF(Sheet5!D22,Sheet5!J22,"") -> 326948 | I31: =IF(Sheet5!D22,Sheet5!K22,"") -> 2374860
A32: =IF(Sheet5!D23,Sheet5!A23,"") -> 1167 | B32: =IF(Sheet5!D23,Sheet5!P23,"") -> 8.57 | C32: =IF(Sheet5!D23,Sheet5!R23,"") -> 8.21 | D32: =IF(Sheet5!D23,Sheet5!S23,"") -> 62.82 | F32: =IF(Sheet5!D23,Sheet5!A23,"") -> 1167 | G32: =IF(Sheet5!D23,Sheet5!B23,"") -> 373106 | H32: =IF(Sheet5!D23,Sheet5!J23,"") -> 357176 | I32: =IF(Sheet5!D23,Sheet5!K23,"") -> 2732036
A33: =IF(Sheet5!D24,Sheet5!A24,"") -> 1168 | B33: =IF(Sheet5!D24,Sheet5!P24,"") -> 9.29 | C33: =IF(Sheet5!D24,Sheet5!R24,"") -> 8.93 | D33: =IF(Sheet5!D24,Sheet5!S24,"") -> 71.75 | F33: =IF(Sheet5!D24,Sheet5!A24,"") -> 1168 | G33: =IF(Sheet5!D24,Sheet5!B24,"") -> 404823 | H33: =IF(Sheet5!D24,Sheet5!J24,"") -> 388857 | I33: =IF(Sheet5!D24,Sheet5!K24,"") -> 3120893
A34: =IF(Sheet5!D25,Sheet5!A25,"") -> 1169 | B34: =IF(Sheet5!D25,Sheet5!P25,"") -> 10.01 | C34: =IF(Sheet5!D25,Sheet5!R25,"") -> 9.65 | D34: =IF(Sheet5!D25,Sheet5!S25,"") -> 81.4 | F34: =IF(Sheet5!D25,Sheet5!A25,"") -> 1169 | G34: =IF(Sheet5!D25,Sheet5!B25,"") -> 436102 | H34: =IF(Sheet5!D25,Sheet5!J25,"") -> 420366 | I34: =IF(Sheet5!D25,Sheet5!K25,"") -> 3541259
A35: =IF(Sheet5!D26,Sheet5!A26,"") -> 1170 | B35: =IF(Sheet5!D26,Sheet5!P26,"") -> 10.72 | C35: =IF(Sheet5!D26,Sheet5!R26,"") -> 10.37 | D35: =IF(Sheet5!D26,Sheet5!S26,"") -> 91.77 | F35: =IF(Sheet5!D26,Sheet5!A26,"") -> 1170 | G35: =IF(Sheet5!D26,Sheet5!B26,"") -> 466811 | H35: =IF(Sheet5!D26,Sheet5!J26,"") -> 451369 | I35: =IF(Sheet5!D26,Sheet5!K26,"") -> 3992628
A36: =IF(Sheet5!D27,Sheet5!A27,"") -> 1171 | B36: =IF(Sheet5!D27,Sheet5!P27,"") -> 11.43 | C36: =IF(Sheet5!D27,Sheet5!R27,"") -> 11.08 | D36: =IF(Sheet5!D27,Sheet5!S27,"") -> 102.85 | F36: =IF(Sheet5!D27,Sheet5!A27,"") -> 1171 | G36: =IF(Sheet5!D27,Sheet5!B27,"") -> 497888 | H36: =IF(Sheet5!D27,Sheet5!J27,"") -> 482266 | I36: =IF(Sheet5!D27,Sheet5!K27,"") -> 4474894
A37: =IF(Sheet5!D28,Sheet5!A28,"") -> 1172 | B37: =IF(Sheet5!D28,Sheet5!P28,"") -> 12.15 | C37: =IF(Sheet5!D28,Sheet5!R28,"") -> 11.79 | D37: =IF(Sheet5!D28,Sheet5!S28,"") -> 114.64 | F37: =IF(Sheet5!D28,Sheet5!A28,"") -> 1172 | G37: =IF(Sheet5!D28,Sheet5!B28,"") -> 529323 | H37: =IF(Sheet5!D28,Sheet5!J28,"") -> 513525 | I37: =IF(Sheet5!D28,Sheet5!K28,"") -> 4988419
A38: =IF(Sheet5!D29,Sheet5!A29,"") -> 1173 | B38: =IF(Sheet5!D29,Sheet5!P29,"") -> 12.89 | C38: =IF(Sheet5!D29,Sheet5!R29,"") -> 12.52 | D38: =IF(Sheet5!D29,Sheet5!S29,"") -> 127.16 | F38: =IF(Sheet5!D29,Sheet5!A29,"") -> 1173 | G38: =IF(Sheet5!D29,Sheet5!B29,"") -> 561277 | H38: =IF(Sheet5!D29,Sheet5!J29,"") -> 545222 | I38: =IF(Sheet5!D29,Sheet5!K29,"") -> 5533641
A39: =IF(Sheet5!D30,Sheet5!A30,"") -> 1174 | B39: =IF(Sheet5!D30,Sheet5!P30,"") -> 13.66 | C39: =IF(Sheet5!D30,Sheet5!R30,"") -> 13.28 | D39: =IF(Sheet5!D30,Sheet5!S30,"") -> 140.44 | F39: =IF(Sheet5!D30,Sheet5!A30,"") -> 1174 | G39: =IF(Sheet5!D30,Sheet5!B30,"") -> 595171 | H39: =IF(Sheet5!D30,Sheet5!J30,"") -> 578141 | I39: =IF(Sheet5!D30,Sheet5!K30,"") -> 6111782
A40: =IF(Sheet5!D31,Sheet5!A31,"") -> 1175 | B40: =IF(Sheet5!D31,Sheet5!P31,"") -> 14.5 | C40: =IF(Sheet5!D31,Sheet5!R31,"") -> 14.08 | D40: =IF(Sheet5!D31,Sheet5!S31,"") -> 154.52 | F40: =IF(Sheet5!D31,Sheet5!A31,"") -> 1175 | G40: =IF(Sheet5!D31,Sheet5!B31,"") -> 631427 | H40: =IF(Sheet5!D31,Sheet5!J31,"") -> 613210 | I40: =IF(Sheet5!D31,Sheet5!K31,"") -> 6724992
A41: =IF(Sheet5!D32,Sheet5!A32,"") -> 1176 | B41: =IF(Sheet5!D32,Sheet5!P32,"") -> 15.36 | C41: =IF(Sheet5!D32,Sheet5!R32,"") -> 14.93 | D41: =IF(Sheet5!D32,Sheet5!S32,"") -> 169.45 | F41: =IF(Sheet5!D32,Sheet5!A32,"") -> 1176 | G41: =IF(Sheet5!D32,Sheet5!B32,"") -> 669164 | H41: =IF(Sheet5!D32,Sheet5!J32,"") -> 650204 | I41: =IF(Sheet5!D32,Sheet5!K32,"") -> 7375196
A42: =IF(Sheet5!D33,Sheet5!A33,"") -> 1177 | B42: =IF(Sheet5!D33,Sheet5!P33,"") -> 16.26 | C42: =IF(Sheet5!D33,Sheet5!R33,"") -> 15.81 | D42: =IF(Sheet5!D33,Sheet5!S33,"") -> 185.26 | F42: =IF(Sheet5!D33,Sheet5!A33,"") -> 1177 | G42: =IF(Sheet5!D33,Sheet5!B33,"") -> 708427 | H42: =IF(Sheet5!D33,Sheet5!J33,"") -> 688702 | I42: =IF(Sheet5!D33,Sheet5!K33,"") -> 8063898
A43: =IF(Sheet5!D34,Sheet5!A34,"") -> 1178 | B43: =IF(Sheet5!D34,Sheet5!P34,"") -> 17.17 | C43: =IF(Sheet5!D34,Sheet5!R34,"") -> 16.72 | D43: =IF(Sheet5!D34,Sheet5!S34,"") -> 201.98 | F43: =IF(Sheet5!D34,Sheet5!A34,"") -> 1178 | G43: =IF(Sheet5!D34,Sheet5!B34,"") -> 748099 | H43: =IF(Sheet5!D34,Sheet5!J34,"") -> 728173 | I43: =IF(Sheet5!D34,Sheet5!K34,"") -> 8792071
A44: =IF(Sheet5!D35,Sheet5!A35,"") -> 1179 | B44: =IF(Sheet5!D35,Sheet5!P35,"") -> 18.12 | C44: =IF(Sheet5!D35,Sheet5!R35,"") -> 17.65 | D44: =IF(Sheet5!D35,Sheet5!S35,"") -> 219.63 | F44: =IF(Sheet5!D35,Sheet5!A35,"") -> 1179 | G44: =IF(Sheet5!D35,Sheet5!B35,"") -> 789152 | H44: =IF(Sheet5!D35,Sheet5!J35,"") -> 768534 | I44: =IF(Sheet5!D35,Sheet5!K35,"") -> 9560605
A45: =IF(Sheet5!D36,Sheet5!A36,"") -> 1180 | B45: =IF(Sheet5!D36,Sheet5!P36,"") -> 19.11 | C45: =IF(Sheet5!D36,Sheet5!R36,"") -> 18.62 | D45: =IF(Sheet5!D36,Sheet5!S36,"") -> 238.25 | F45: =IF(Sheet5!D36,Sheet5!A36,"") -> 1180 | G45: =IF(Sheet5!D36,Sheet5!B36,"") -> 832222 | H45: =IF(Sheet5!D36,Sheet5!J36,"") -> 810592 | I45: =IF(Sheet5!D36,Sheet5!K36,"") -> 10371197
A46: =IF(Sheet5!D37,Sheet5!A37,"") ->  | B46: =IF(Sheet5!D37,Sheet5!P37,"") ->  | C46: =IF(Sheet5!D37,Sheet5!R37,"") ->  | D46: =IF(Sheet5!D37,Sheet5!S37,"") ->  | F46: =IF(Sheet5!D37,Sheet5!A37,"") ->  | G46: =IF(Sheet5!D37,Sheet5!B37,"") ->  | H46: =IF(Sheet5!D37,Sheet5!J37,"") ->  | I46: =IF(Sheet5!D37,Sheet5!K37,"") -> 
A47: =IF(Sheet5!D38,Sheet5!A38,"") ->  | B47: =IF(Sheet5!D38,Sheet5!P38,"") ->  | C47: =IF(Sheet5!D38,Sheet5!R38,"") ->  | D47: =IF(Sheet5!D38,Sheet5!S38,"") ->  | F47: =IF(Sheet5!D38,Sheet5!A38,"") ->  | G47: =IF(Sheet5!D38,Sheet5!B38,"") ->  | H47: =IF(Sheet5!D38,Sheet5!J38,"") ->  | I47: =IF(Sheet5!D38,Sheet5!K38,"") -> 
A48: =IF(Sheet5!D39,Sheet5!A39,"") ->  | B48: =IF(Sheet5!D39,Sheet5!P39,"") ->  | C48: =IF(Sheet5!D39,Sheet5!R39,"") ->  | D48: =IF(Sheet5!D39,Sheet5!S39,"") ->  | F48: =IF(Sheet5!D39,Sheet5!A39,"") ->  | G48: =IF(Sheet5!D39,Sheet5!B39,"") ->  | H48: =IF(Sheet5!D39,Sheet5!J39,"") ->  | I48: =IF(Sheet5!D39,Sheet5!K39,"") -> 
A49: =IF(Sheet5!D40,Sheet5!A40,"") ->  | B49: =IF(Sheet5!D40,Sheet5!P40,"") ->  | C49: =IF(Sheet5!D40,Sheet5!R40,"") ->  | D49: =IF(Sheet5!D40,Sheet5!S40,"") ->  | F49: =IF(Sheet5!D40,Sheet5!A40,"") ->  | G49: =IF(Sheet5!D40,Sheet5!B40,"") ->  | H49: =IF(Sheet5!D40,Sheet5!J40,"") ->  | I49: =IF(Sheet5!D40,Sheet5!K40,"") -> 
A50: =IF(Sheet5!D41,Sheet5!A41,"") ->  | B50: =IF(Sheet5!D41,Sheet5!P41,"") ->  | C50: =IF(Sheet5!D41,Sheet5!R41,"") ->  | D50: =IF(Sheet5!D41,Sheet5!S41,"") ->  | F50: =IF(Sheet5!D41,Sheet5!A41,"") ->  | G50: =IF(Sheet5!D41,Sheet5!B41,"") ->  | H50: =IF(Sheet5!D41,Sheet5!J41,"") ->  | I50: =IF(Sheet5!D41,Sheet5!K41,"") -> 
A51: =IF(Sheet5!D42,Sheet5!A42,"") ->  | B51: =IF(Sheet5!D42,Sheet5!P42,"") ->  | C51: =IF(Sheet5!D42,Sheet5!R42,"") ->  | D51: =IF(Sheet5!D42,Sheet5!S42,"") ->  | F51: =IF(Sheet5!D42,Sheet5!A42,"") ->  | G51: =IF(Sheet5!D42,Sheet5!B42,"") ->  | H51: =IF(Sheet5!D42,Sheet5!J42,"") ->  | I51: =IF(Sheet5!D42,Sheet5!K42,"") -> 
A52: =IF(Sheet5!D43,Sheet5!A43,"") ->  | B52: =IF(Sheet5!D43,Sheet5!P43,"") ->  | C52: =IF(Sheet5!D43,Sheet5!R43,"") ->  | D52: =IF(Sheet5!D43,Sheet5!S43,"") ->  | F52: =IF(Sheet5!D43,Sheet5!A43,"") ->  | G52: =IF(Sheet5!D43,Sheet5!B43,"") ->  | H52: =IF(Sheet5!D43,Sheet5!J43,"") ->  | I52: =IF(Sheet5!D43,Sheet5!K43,"") -> 
A53: =IF(Sheet5!D44,Sheet5!A44,"") ->  | B53: =IF(Sheet5!D44,Sheet5!P44,"") ->  | C53: =IF(Sheet5!D44,Sheet5!R44,"") ->  | D53: =IF(Sheet5!D44,Sheet5!S44,"") ->  | F53: =IF(Sheet5!D44,Sheet5!A44,"") ->  | G53: =IF(Sheet5!D44,Sheet5!B44,"") ->  | H53: =IF(Sheet5!D44,Sheet5!J44,"") ->  | I53: =IF(Sheet5!D44,Sheet5!K44,"") -> 
A54: =IF(Sheet5!D45,Sheet5!A45,"") ->  | B54: =IF(Sheet5!D45,Sheet5!P45,"") ->  | C54: =IF(Sheet5!D45,Sheet5!R45,"") ->  | D54: =IF(Sheet5!D45,Sheet5!S45,"") ->  | F54: =IF(Sheet5!D45,Sheet5!A45,"") ->  | G54: =IF(Sheet5!D45,Sheet5!B45,"") ->  | H54: =IF(Sheet5!D45,Sheet5!J45,"") ->  | I54: =IF(Sheet5!D45,Sheet5!K45,"") -> 
A55: =IF(Sheet5!D46,Sheet5!A46,"") ->  | B55: =IF(Sheet5!D46,Sheet5!P46,"") ->  | C55: =IF(Sheet5!D46,Sheet5!R46,"") ->  | D55: =IF(Sheet5!D46,Sheet5!S46,"") ->  | F55: =IF(Sheet5!D46,Sheet5!A46,"") ->  | G55: =IF(Sheet5!D46,Sheet5!B46,"") ->  | H55: =IF(Sheet5!D46,Sheet5!J46,"") ->  | I55: =IF(Sheet5!D46,Sheet5!K46,"") -> 
A56: =IF(Sheet5!D47,Sheet5!A47,"") ->  | B56: =IF(Sheet5!D47,Sheet5!P47,"") ->  | C56: =IF(Sheet5!D47,Sheet5!R47,"") ->  | D56: =IF(Sheet5!D47,Sheet5!S47,"") ->  | F56: =IF(Sheet5!D47,Sheet5!A47,"") ->  | G56: =IF(Sheet5!D47,Sheet5!B47,"") ->  | H56: =IF(Sheet5!D47,Sheet5!J47,"") ->  | I56: =IF(Sheet5!D47,Sheet5!K47,"") -> 
A57: =IF(Sheet5!D48,Sheet5!A48,"") ->  | B57: =IF(Sheet5!D48,Sheet5!P48,"") ->  | C57: =IF(Sheet5!D48,Sheet5!R48,"") ->  | D57: =IF(Sheet5!D48,Sheet5!S48,"") ->  | F57: =IF(Sheet5!D48,Sheet5!A48,"") ->  | G57: =IF(Sheet5!D48,Sheet5!B48,"") ->  | H57: =IF(Sheet5!D48,Sheet5!J48,"") ->  | I57: =IF(Sheet5!D48,Sheet5!K48,"") -> 
A58: =IF(Sheet5!D49,Sheet5!A49,"") ->  | B58: =IF(Sheet5!D49,Sheet5!P49,"") ->  | C58: =IF(Sheet5!D49,Sheet5!R49,"") ->  | D58: =IF(Sheet5!D49,Sheet5!S49,"") ->  | F58: =IF(Sheet5!D49,Sheet5!A49,"") ->  | G58: =IF(Sheet5!D49,Sheet5!B49,"") ->  | H58: =IF(Sheet5!D49,Sheet5!J49,"") ->  | I58: =IF(Sheet5!D49,Sheet5!K49,"") -> 
A59: =IF(Sheet5!D50,Sheet5!A50,"") ->  | B59: =IF(Sheet5!D50,Sheet5!P50,"") ->  | C59: =IF(Sheet5!D50,Sheet5!R50,"") ->  | D59: =IF(Sheet5!D50,Sheet5!S50,"") ->  | F59: =IF(Sheet5!D50,Sheet5!A50,"") ->  | G59: =IF(Sheet5!D50,Sheet5!B50,"") ->  | H59: =IF(Sheet5!D50,Sheet5!J50,"") ->  | I59: =IF(Sheet5!D50,Sheet5!K50,"") -> 
A60: =IF(Sheet5!D51,Sheet5!A51,"") ->  | B60: =IF(Sheet5!D51,Sheet5!P51,"") ->  | C60: =IF(Sheet5!D51,Sheet5!R51,"") ->  | D60: =IF(Sheet5!D51,Sheet5!S51,"") ->  | F60: =IF(Sheet5!D51,Sheet5!A51,"") ->  | G60: =IF(Sheet5!D51,Sheet5!B51,"") ->  | H60: =IF(Sheet5!D51,Sheet5!J51,"") ->  | I60: =IF(Sheet5!D51,Sheet5!K51,"") -> 
A61: =IF(Sheet5!D52,Sheet5!A52,"") ->  | B61: =IF(Sheet5!D52,Sheet5!P52,"") ->  | C61: =IF(Sheet5!D52,Sheet5!R52,"") ->  | D61: =IF(Sheet5!D52,Sheet5!S52,"") ->  | F61: =IF(Sheet5!D52,Sheet5!A52,"") ->  | G61: =IF(Sheet5!D52,Sheet5!B52,"") ->  | H61: =IF(Sheet5!D52,Sheet5!J52,"") ->  | I61: =IF(Sheet5!D52,Sheet5!K52,"") -> 
A62: =IF(Sheet5!D53,Sheet5!A53,"") ->  | B62: =IF(Sheet5!D53,Sheet5!P53,"") ->  | C62: =IF(Sheet5!D53,Sheet5!R53,"") ->  | D62: =IF(Sheet5!D53,Sheet5!S53,"") ->  | F62: =IF(Sheet5!D53,Sheet5!A53,"") ->  | G62: =IF(Sheet5!D53,Sheet5!B53,"") ->  | H62: =IF(Sheet5!D53,Sheet5!J53,"") ->  | I62: =IF(Sheet5!D53,Sheet5!K53,"") -> 
A63: =IF(Sheet5!D54,Sheet5!A54,"") ->  | B63: =IF(Sheet5!D54,Sheet5!P54,"") ->  | C63: =IF(Sheet5!D54,Sheet5!R54,"") ->  | D63: =IF(Sheet5!D54,Sheet5!S54,"") ->  | F63: =IF(Sheet5!D54,Sheet5!A54,"") ->  | G63: =IF(Sheet5!D54,Sheet5!B54,"") ->  | H63: =IF(Sheet5!D54,Sheet5!J54,"") ->  | I63: =IF(Sheet5!D54,Sheet5!K54,"") -> 
A64: End of Data

Sheet CL Cross Section
A1: =Info!A1 -> GIS Stage Storage.xlsm V1.1 | F1: 1) Import the Cross Section .csv file.
F4: 2) Set the output # of decimals to use for: | J4: Station | K4: Elevation
B5: Lowest elevation found= | C5: =IF(MIN(C8:C107)=0,"",MIN(C8:C107)) ->  | J5: 1 | K5: 1
C6: 3) Review the resulting values | F6: Station in this column | G6: Elevation
B7: Station | C7: Elevation | F7: =SUBSTITUTE('CL from GIS'!C1,"","") ->  | G7: =SUBSTITUTE('CL from GIS'!F1,"","") -> 
B8: =IFERROR(ROUND(SUBSTITUTE(SUBSTITUTE(F8,"+",""),"'",""),J$5),"") ->  | C8: =IFERROR(ROUND(SUBSTITUTE(G8,"'",""),K$5),"") ->  | F8: =SUBSTITUTE('CL from GIS'!C2,"","") ->  | G8: =SUBSTITUTE('CL from GIS'!F2,"","") -> 
F9: =SUBSTITUTE('CL from GIS'!C3,"","") ->  | G9: =SUBSTITUTE('CL from GIS'!F3,"","") -> 
F10: =SUBSTITUTE('CL from GIS'!C4,"","") ->  | G10: =SUBSTITUTE('CL from GIS'!F4,"","") -> 
F11: =SUBSTITUTE('CL from GIS'!C5,"","") ->  | G11: =SUBSTITUTE('CL from GIS'!F5,"","") -> 
F12: =SUBSTITUTE('CL from GIS'!C6,"","") ->  | G12: =SUBSTITUTE('CL from GIS'!F6,"","") -> 
F13: =SUBSTITUTE('CL from GIS'!C7,"","") ->  | G13: =SUBSTITUTE('CL from GIS'!F7,"","") -> 
F14: =SUBSTITUTE('CL from GIS'!C8,"","") ->  | G14: =SUBSTITUTE('CL from GIS'!F8,"","") -> 
F15: =SUBSTITUTE('CL from GIS'!C9,"","") ->  | G15: =SUBSTITUTE('CL from GIS'!F9,"","") -> 
F16: =SUBSTITUTE('CL from GIS'!C10,"","") ->  | G16: =SUBSTITUTE('CL from GIS'!F10,"","") -> 
F17: =SUBSTITUTE('CL from GIS'!C11,"","") ->  | G17: =SUBSTITUTE('CL from GIS'!F11,"","") -> 
F18: =SUBSTITUTE('CL from GIS'!C12,"","") ->  | G18: =SUBSTITUTE('CL from GIS'!F12,"","") -> 
F19: =SUBSTITUTE('CL from GIS'!C13,"","") ->  | G19: =SUBSTITUTE('CL from GIS'!F13,"","") -> 
F20: =SUBSTITUTE('CL from GIS'!C14,"","") ->  | G20: =SUBSTITUTE('CL from GIS'!F14,"","") -> 
F21: =SUBSTITUTE('CL from GIS'!C15,"","") ->  | G21: =SUBSTITUTE('CL from GIS'!F15,"","") -> 
F22: =SUBSTITUTE('CL from GIS'!C16,"","") ->  | G22: =SUBSTITUTE('CL from GIS'!F16,"","") -> 
F23: =SUBSTITUTE('CL from GIS'!C17,"","") ->  | G23: =SUBSTITUTE('CL from GIS'!F17,"","") -> 
F24: =SUBSTITUTE('CL from GIS'!C18,"","") ->  | G24: =SUBSTITUTE('CL from GIS'!F18,"","") -> 
F25: =SUBSTITUTE('CL from GIS'!C19,"","") ->  | G25: =SUBSTITUTE('CL from GIS'!F19,"","") -> 
F26: =SUBSTITUTE('CL from GIS'!C20,"","") ->  | G26: =SUBSTITUTE('CL from GIS'!F20,"","") -> 
F27: =SUBSTITUTE('CL from GIS'!C21,"","") ->  | G27: =SUBSTITUTE('CL from GIS'!F21,"","") -> 
F28: =SUBSTITUTE('CL from GIS'!C22,"","") ->  | G28: =SUBSTITUTE('CL from GIS'!F22,"","") -> 
F29: =SUBSTITUTE('CL from GIS'!C23,"","") ->  | G29: =SUBSTITUTE('CL from GIS'!F23,"","") -> 
F30: =SUBSTITUTE('CL from GIS'!C24,"","") ->  | G30: =SUBSTITUTE('CL from GIS'!F24,"","") -> 
F31: =SUBSTITUTE('CL from GIS'!C25,"","") ->  | G31: =SUBSTITUTE('CL from GIS'!F25,"","") -> 
F32: =SUBSTITUTE('CL from GIS'!C26,"","") ->  | G32: =SUBSTITUTE('CL from GIS'!F26,"","") -> 
F33: =SUBSTITUTE('CL from GIS'!C27,"","") ->  | G33: =SUBSTITUTE('CL from GIS'!F27,"","") -> 
F34: =SUBSTITUTE('CL from GIS'!C28,"","") ->  | G34: =SUBSTITUTE('CL from GIS'!F28,"","") -> 
F35: =SUBSTITUTE('CL from GIS'!C29,"","") ->  | G35: =SUBSTITUTE('CL from GIS'!F29,"","") -> 
F36: =SUBSTITUTE('CL from GIS'!C30,"","") ->  | G36: =SUBSTITUTE('CL from GIS'!F30,"","") -> 
F37: =SUBSTITUTE('CL from GIS'!C31,"","") ->  | G37: =SUBSTITUTE('CL from GIS'!F31,"","") -> 
F38: =SUBSTITUTE('CL from GIS'!C32,"","") ->  | G38: =SUBSTITUTE('CL from GIS'!F32,"","") -> 
F39: =SUBSTITUTE('CL from GIS'!C33,"","") ->  | G39: =SUBSTITUTE('CL from GIS'!F33,"","") -> 
B40: =IFERROR(ROUND(SUBSTITUTE(SUBSTITUTE(F40,"+",""),"'",""),J$5),"") ->  | C40: =IFERROR(ROUND(SUBSTITUTE(G40,"'",""),K$5),"") ->  | F40: =SUBSTITUTE('CL from GIS'!C34,"","") ->  | G40: =SUBSTITUTE('CL from GIS'!F34,"","") -> 
F41: =SUBSTITUTE('CL from GIS'!C35,"","") ->  | G41: =SUBSTITUTE('CL from GIS'!F35,"","") -> 
F42: =SUBSTITUTE('CL from GIS'!C36,"","") ->  | G42: =SUBSTITUTE('CL from GIS'!F36,"","") -> 
F43: =SUBSTITUTE('CL from GIS'!C37,"","") ->  | G43: =SUBSTITUTE('CL from GIS'!F37,"","") -> 
F44: =SUBSTITUTE('CL from GIS'!C38,"","") ->  | G44: =SUBSTITUTE('CL from GIS'!F38,"","") -> 
F45: =SUBSTITUTE('CL from GIS'!C39,"","") ->  | G45: =SUBSTITUTE('CL from GIS'!F39,"","") -> 
F46: =SUBSTITUTE('CL from GIS'!C40,"","") ->  | G46: =SUBSTITUTE('CL from GIS'!F40,"","") -> 
F47: =SUBSTITUTE('CL from GIS'!C41,"","") ->  | G47: =SUBSTITUTE('CL from GIS'!F41,"","") -> 
F48: =SUBSTITUTE('CL from GIS'!C42,"","") ->  | G48: =SUBSTITUTE('CL from GIS'!F42,"","") -> 
F49: =SUBSTITUTE('CL from GIS'!C43,"","") ->  | G49: =SUBSTITUTE('CL from GIS'!F43,"","") -> 
F50: =SUBSTITUTE('CL from GIS'!C44,"","") ->  | G50: =SUBSTITUTE('CL from GIS'!F44,"","") -> 
F51: =SUBSTITUTE('CL from GIS'!C45,"","") ->  | G51: =SUBSTITUTE('CL from GIS'!F45,"","") -> 
F52: =SUBSTITUTE('CL from GIS'!C46,"","") ->  | G52: =SUBSTITUTE('CL from GIS'!F46,"","") -> 
F53: =SUBSTITUTE('CL from GIS'!C47,"","") ->  | G53: =SUBSTITUTE('CL from GIS'!F47,"","") -> 
F54: =SUBSTITUTE('CL from GIS'!C48,"","") ->  | G54: =SUBSTITUTE('CL from GIS'!F48,"","") -> 
F55: =SUBSTITUTE('CL from GIS'!C49,"","") ->  | G55: =SUBSTITUTE('CL from GIS'!F49,"","") -> 
F56: =SUBSTITUTE('CL from GIS'!C50,"","") ->  | G56: =SUBSTITUTE('CL from GIS'!F50,"","") -> 
F57: =SUBSTITUTE('CL from GIS'!C51,"","") ->  | G57: =SUBSTITUTE('CL from GIS'!F51,"","") -> 
A58: =IF(B58="","","WinPond will use the first 50 stations & ignore the rest") ->  | F58: =SUBSTITUTE('CL from GIS'!C52,"","") ->  | G58: =SUBSTITUTE('CL from GIS'!F52,"","") -> 
F59: =SUBSTITUTE('CL from GIS'!C53,"","") ->  | G59: =SUBSTITUTE('CL from GIS'!F53,"","") -> 
F60: =SUBSTITUTE('CL from GIS'!C54,"","") ->  | G60: =SUBSTITUTE('CL from GIS'!F54,"","") -> 
F61: =SUBSTITUTE('CL from GIS'!C55,"","") ->  | G61: =SUBSTITUTE('CL from GIS'!F55,"","") -> 
F62: =SUBSTITUTE('CL from GIS'!C56,"","") ->  | G62: =SUBSTITUTE('CL from GIS'!F56,"","") -> 
F63: =SUBSTITUTE('CL from GIS'!C57,"","") ->  | G63: =SUBSTITUTE('CL from GIS'!F57,"","") -> 
F64: =SUBSTITUTE('CL from GIS'!C58,"","") ->  | G64: =SUBSTITUTE('CL from GIS'!F58,"","") -> 
F65: =SUBSTITUTE('CL from GIS'!C59,"","") ->  | G65: =SUBSTITUTE('CL from GIS'!F59,"","") -> 
F66: =SUBSTITUTE('CL from GIS'!C60,"","") ->  | G66: =SUBSTITUTE('CL from GIS'!F60,"","") -> 
F67: =SUBSTITUTE('CL from GIS'!C61,"","") ->  | G67: =SUBSTITUTE('CL from GIS'!F61,"","") -> 
F68: =SUBSTITUTE('CL from GIS'!C62,"","") ->  | G68: =SUBSTITUTE('CL from GIS'!F62,"","") -> 
F69: =SUBSTITUTE('CL from GIS'!C63,"","") ->  | G69: =SUBSTITUTE('CL from GIS'!F63,"","") -> 
F70: =SUBSTITUTE('CL from GIS'!C64,"","") ->  | G70: =SUBSTITUTE('CL from GIS'!F64,"","") -> 
F71: =SUBSTITUTE('CL from GIS'!C65,"","") ->  | G71: =SUBSTITUTE('CL from GIS'!F65,"","") -> 
B72: =IFERROR(ROUND(SUBSTITUTE(SUBSTITUTE(F72,"+",""),"'",""),J$5),"") ->  | C72: =IFERROR(ROUND(SUBSTITUTE(G72,"'",""),K$5),"") ->  | F72: =SUBSTITUTE('CL from GIS'!C66,"","") ->  | G72: =SUBSTITUTE('CL from GIS'!F66,"","") -> 
F73: =SUBSTITUTE('CL from GIS'!C67,"","") ->  | G73: =SUBSTITUTE('CL from GIS'!F67,"","") -> 
F74: =SUBSTITUTE('CL from GIS'!C68,"","") ->  | G74: =SUBSTITUTE('CL from GIS'!F68,"","") -> 
F75: =SUBSTITUTE('CL from GIS'!C69,"","") ->  | G75: =SUBSTITUTE('CL from GIS'!F69,"","") -> 
F76: =SUBSTITUTE('CL from GIS'!C70,"","") ->  | G76: =SUBSTITUTE('CL from GIS'!F70,"","") -> 
F77: =SUBSTITUTE('CL from GIS'!C71,"","") ->  | G77: =SUBSTITUTE('CL from GIS'!F71,"","") -> 
F78: =SUBSTITUTE('CL from GIS'!C72,"","") ->  | G78: =SUBSTITUTE('CL from GIS'!F72,"","") -> 
F79: =SUBSTITUTE('CL from GIS'!C73,"","") ->  | G79: =SUBSTITUTE('CL from GIS'!F73,"","") -> 
F80: =SUBSTITUTE('CL from GIS'!C74,"","") ->  | G80: =SUBSTITUTE('CL from GIS'!F74,"","") -> 
F81: =SUBSTITUTE('CL from GIS'!C75,"","") ->  | G81: =SUBSTITUTE('CL from GIS'!F75,"","") -> 
F82: =SUBSTITUTE('CL from GIS'!C76,"","") ->  | G82: =SUBSTITUTE('CL from GIS'!F76,"","") -> 
F83: =SUBSTITUTE('CL from GIS'!C77,"","") ->  | G83: =SUBSTITUTE('CL from GIS'!F77,"","") -> 
F84: =SUBSTITUTE('CL from GIS'!C78,"","") ->  | G84: =SUBSTITUTE('CL from GIS'!F78,"","") -> 
F85: =SUBSTITUTE('CL from GIS'!C79,"","") ->  | G85: =SUBSTITUTE('CL from GIS'!F79,"","") -> 
F86: =SUBSTITUTE('CL from GIS'!C80,"","") ->  | G86: =SUBSTITUTE('CL from GIS'!F80,"","") -> 
F87: =SUBSTITUTE('CL from GIS'!C81,"","") ->  | G87: =SUBSTITUTE('CL from GIS'!F81,"","") -> 
F88: =SUBSTITUTE('CL from GIS'!C82,"","") ->  | G88: =SUBSTITUTE('CL from GIS'!F82,"","") -> 
F89: =SUBSTITUTE('CL from GIS'!C83,"","") ->  | G89: =SUBSTITUTE('CL from GIS'!F83,"","") -> 
F90: =SUBSTITUTE('CL from GIS'!C84,"","") ->  | G90: =SUBSTITUTE('CL from GIS'!F84,"","") -> 
F91: =SUBSTITUTE('CL from GIS'!C85,"","") ->  | G91: =SUBSTITUTE('CL from GIS'!F85,"","") -> 
F92: =SUBSTITUTE('CL from GIS'!C86,"","") ->  | G92: =SUBSTITUTE('CL from GIS'!F86,"","") -> 
F93: =SUBSTITUTE('CL from GIS'!C87,"","") ->  | G93: =SUBSTITUTE('CL from GIS'!F87,"","") -> 
F94: =SUBSTITUTE('CL from GIS'!C88,"","") ->  | G94: =SUBSTITUTE('CL from GIS'!F88,"","") -> 
F95: =SUBSTITUTE('CL from GIS'!C89,"","") ->  | G95: =SUBSTITUTE('CL from GIS'!F89,"","") -> 
F96: =SUBSTITUTE('CL from GIS'!C90,"","") ->  | G96: =SUBSTITUTE('CL from GIS'!F90,"","") -> 
F97: =SUBSTITUTE('CL from GIS'!C91,"","") ->  | G97: =SUBSTITUTE('CL from GIS'!F91,"","") -> 
F98: =SUBSTITUTE('CL from GIS'!C92,"","") ->  | G98: =SUBSTITUTE('CL from GIS'!F92,"","") -> 
F99: =SUBSTITUTE('CL from GIS'!C93,"","") ->  | G99: =SUBSTITUTE('CL from GIS'!F93,"","") -> 
F100: =SUBSTITUTE('CL from GIS'!C94,"","") ->  | G100: =SUBSTITUTE('CL from GIS'!F94,"","") -> 
F101: =SUBSTITUTE('CL from GIS'!C95,"","") ->  | G101: =SUBSTITUTE('CL from GIS'!F95,"","") -> 
F102: =SUBSTITUTE('CL from GIS'!C96,"","") ->  | G102: =SUBSTITUTE('CL from GIS'!F96,"","") -> 
F103: =SUBSTITUTE('CL from GIS'!C97,"","") ->  | G103: =SUBSTITUTE('CL from GIS'!F97,"","") -> 
F104: =SUBSTITUTE('CL from GIS'!C98,"","") ->  | G104: =SUBSTITUTE('CL from GIS'!F98,"","") -> 
F105: =SUBSTITUTE('CL from GIS'!C99,"","") ->  | G105: =SUBSTITUTE('CL from GIS'!F99,"","") -> 
F106: =SUBSTITUTE('CL from GIS'!C100,"","") ->  | G106: =SUBSTITUTE('CL from GIS'!F100,"","") -> 
F107: =SUBSTITUTE('CL from GIS'!C101,"","") ->  | G107: =SUBSTITUTE('CL from GIS'!F101,"","") -> 
B108: End

Sheet CL from GIS

Sheet GIS Output
A1: OBJECTID | B1: Dataset | C1: Plane_Height | D1: Reference | E1: Z_Factor | F1: Area_2D | G1: Area_3D | H1: Volume | I1: ELEV_FEET | J1: POOL_ACRES | K1: POOL_SQFT | L1: ACRE_FOOT
A2: 1 | B2: ..Temp\Temp_EngTools.gdb\tempDEM | C2: 359.66 | D2: BELOW | E2: 1 | F2: 77315.90938 | G2: 77610.65296 | H2: 293656.5579 | I2: 1180 | J2: 19.1 | K2: 832221.9 | L2: 238.1
A3: 2 | B3: ..Temp\Temp_EngTools.gdb\tempDEM | C3: 359.36 | D3: BELOW | E3: 1 | F3: 73314.62479 | G3: 73592.65652 | H3: 270703.3111 | I3: 1179 | J3: 18.1 | K3: 789152.4 | L3: 219.5
A4: 3 | B4: ..Temp\Temp_EngTools.gdb\tempDEM | C4: 359.06 | D4: BELOW | E4: 1 | F4: 69500.66645 | G4: 69762.1879 | H4: 248945.1123 | I4: 1178 | J4: 17.2 | K4: 748099.3 | L4: 201.8
A5: 4 | B5: ..Temp\Temp_EngTools.gdb\tempDEM | C5: 358.75 | D5: BELOW | E5: 1 | F5: 65815.00149 | G5: 66060.16918 | H5: 228323.9228 | I5: 1177 | J5: 16.3 | K5: 708427.1 | L5: 185.1
A6: 5 | B6: ..Temp\Temp_EngTools.gdb\tempDEM | C6: 358.45 | D6: BELOW | E6: 1 | F6: 62167.36863 | G6: 62396.62953 | H6: 208827.9736 | I6: 1176 | J6: 15.4 | K6: 669164.3 | L6: 169.3
A7: 6 | B7: ..Temp\Temp_EngTools.gdb\tempDEM | C7: 358.14 | D7: BELOW | E7: 1 | F7: 58661.50407 | G7: 58875.11425 | H7: 190415.6267 | I7: 1175 | J7: 14.5 | K7: 631427.4 | L7: 154.4
A8: 7 | B8: ..Temp\Temp_EngTools.gdb\tempDEM | C8: 357.84 | D8: BELOW | E8: 1 | F8: 55293.18897 | G8: 55491.52551 | H8: 173054.0827 | I8: 1174 | J8: 13.7 | K8: 595171.2 | L8: 140.3
A9: 8 | B9: ..Temp\Temp_EngTools.gdb\tempDEM | C9: 357.53 | D9: BELOW | E9: 1 | F9: 52144.27288 | G9: 52327.48454 | H9: 156685.4189 | I9: 1173 | J9: 12.9 | K9: 561276.5 | L9: 127
A10: 9 | B10: ..Temp\Temp_EngTools.gdb\tempDEM | C10: 357.23 | D10: BELOW | E10: 1 | F10: 49175.65352 | G10: 49343.8655 | H10: 141245.3802 | I10: 1172 | J10: 12.2 | K10: 529322.6 | L10: 114.5
A11: 10 | B11: ..Temp\Temp_EngTools.gdb\tempDEM | C11: 356.92 | D11: BELOW | E11: 1 | F11: 46255.2773 | G11: 46409.09903 | H11: 126707.8173 | I11: 1171 | J11: 11.4 | K11: 497887.9 | L11: 102.7
A12: 11 | B12: ..Temp\Temp_EngTools.gdb\tempDEM | C12: 356.62 | D12: BELOW | E12: 1 | F12: 43368.178 | G12: 43508.21815 | H12: 113049.1735 | I12: 1170 | J12: 10.7 | K12: 466811.4 | L12: 91.7
A13: 12 | B13: ..Temp\Temp_EngTools.gdb\tempDEM | C13: 356.31 | D13: BELOW | E13: 1 | F13: 40515.17635 | G13: 40642.0257 | H13: 100264.5967 | I13: 1169 | J13: 10 | K13: 436101.9 | L13: 81.3
A14: 13 | B14: ..Temp\Temp_EngTools.gdb\tempDEM | C14: 356.01 | D14: BELOW | E14: 1 | F14: 37609.25352 | G14: 37723.5524 | H14: 88358.8598 | I14: 1168 | J14: 9.3 | K14: 404822.8 | L14: 71.6
A15: 14 | B15: ..Temp\Temp_EngTools.gdb\tempDEM | C15: 355.7 | D15: BELOW | E15: 1 | F15: 34662.65198 | G15: 34765.1196 | H15: 77348.92988 | I15: 1167 | J15: 8.6 | K15: 373105.8 | L15: 62.7
A16: 15 | B16: ..Temp\Temp_EngTools.gdb\tempDEM | C16: 355.4 | D16: BELOW | E16: 1 | F16: 31724.47897 | G16: 31815.70152 | H16: 67235.68282 | I16: 1166 | J16: 7.8 | K16: 341479.6 | L16: 54.5
A17: 16 | B17: ..Temp\Temp_EngTools.gdb\tempDEM | C17: 355.09 | D17: BELOW | E17: 1 | F17: 29044.04139 | G17: 29124.3425 | H17: 57983.58865 | I17: 1165 | J17: 7.2 | K17: 312627.6 | L17: 47
A18: 17 | B18: ..Temp\Temp_EngTools.gdb\tempDEM | C18: 354.79 | D18: BELOW | E18: 1 | F18: 26587.06387 | G18: 26656.84796 | H18: 49510.7761 | I18: 1164 | J18: 6.6 | K18: 286180.9 | L18: 40.1
A19: 18 | B19: ..Temp\Temp_EngTools.gdb\tempDEM | C19: 354.48 | D19: BELOW | E19: 1 | F19: 24234.28767 | G19: 24294.00344 | H19: 41772.7262 | I19: 1163 | J19: 6 | K19: 260855.8 | L19: 33.9
A20: 19 | B20: ..Temp\Temp_EngTools.gdb\tempDEM | C20: 354.18 | D20: BELOW | E20: 1 | F20: 21975.41464 | G20: 22025.70736 | H20: 34732.39636 | I20: 1162 | J20: 5.4 | K20: 236541.5 | L20: 28.2
A21: 20 | B21: ..Temp\Temp_EngTools.gdb\tempDEM | C21: 353.87 | D21: BELOW | E21: 1 | F21: 19725.33412 | G21: 19767.1164 | H21: 28381.48133 | I21: 1161 | J21: 4.9 | K21: 212321.8 | L21: 23
A22: 21 | B22: ..Temp\Temp_EngTools.gdb\tempDEM | C22: 353.57 | D22: BELOW | E22: 1 | F22: 17405.49824 | G22: 17439.64382 | H22: 22719.9482 | I22: 1160 | J22: 4.3 | K22: 187351.3 | L22: 18.4
A23: 22 | B23: ..Temp\Temp_EngTools.gdb\tempDEM | C23: 353.26 | D23: BELOW | E23: 1 | F23: 15049.2447 | G23: 15076.5528 | H23: 17777.15919 | I23: 1159 | J23: 3.7 | K23: 161988.8 | L23: 14.4
A24: 23 | B24: ..Temp\Temp_EngTools.gdb\tempDEM | C24: 352.96 | D24: BELOW | E24: 1 | F24: 12739.19019 | G24: 12760.69491 | H24: 13552.14896 | I24: 1158 | J24: 3.1 | K24: 137123.6 | L24: 11
A25: 24 | B25: ..Temp\Temp_EngTools.gdb\tempDEM | C25: 352.65 | D25: BELOW | E25: 1 | F25: 10622.00224 | G25: 10638.77781 | H25: 9996.240908 | I25: 1157 | J25: 2.6 | K25: 114334.3 | L25: 8.1
A26: 25 | B26: ..Temp\Temp_EngTools.gdb\tempDEM | C26: 352.35 | D26: BELOW | E26: 1 | F26: 8584.25762 | G26: 8597.259537 | H26: 7072.474189 | I26: 1156 | J26: 2.1 | K26: 92400.2 | L26: 5.7
A27: 26 | B27: ..Temp\Temp_EngTools.gdb\tempDEM | C27: 352.04 | D27: BELOW | E27: 1 | F27: 6696.177835 | G27: 6705.968365 | H27: 4751.054321 | I27: 1155 | J27: 1.7 | K27: 72077.1 | L27: 3.9
A28: 27 | B28: ..Temp\Temp_EngTools.gdb\tempDEM | C28: 351.74 | D28: BELOW | E28: 1 | F28: 5108.207123 | G28: 5115.001361 | H28: 2962.807131 | I28: 1154 | J28: 1.3 | K28: 54984.3 | L28: 2.4
A29: 28 | B29: ..Temp\Temp_EngTools.gdb\tempDEM | C29: 351.44 | D29: BELOW | E29: 1 | F29: 3806.842168 | G29: 3811.215281 | H29: 1603.509039 | I29: 1153 | J29: 0.9 | K29: 40976.5 | L29: 1.3
A30: 29 | B30: ..Temp\Temp_EngTools.gdb\tempDEM | C30: 351.13 | D30: BELOW | E30: 1 | F30: 2393.967578 | G30: 2396.731755 | H30: 664.290202 | I30: 1152 | J30: 0.6 | K30: 25768.5 | L30: 0.5
A31: 30 | B31: ..Temp\Temp_EngTools.gdb\tempDEM | C31: 350.83 | D31: BELOW | E31: 1 | F31: 864.653327 | G31: 866.18979 | H31: 177.724777 | I31: 1151 | J31: 0.2 | K31: 9307.1 | L31: 0.1
A32: 31 | B32: ..Temp\Temp_EngTools.gdb\tempDEM | C32: 350.52 | D32: BELOW | E32: 1 | F32: 210.342486 | G32: 211.038942 | H32: 38.834076 | I32: 1150 | J32: 0.1 | K32: 2264.1 | L32: 0
A33: 32 | B33: ..Temp\Temp_EngTools.gdb\tempDEM | C33: 350.22 | D33: BELOW | E33: 1 | F33: 56.525664 | G33: 56.671855 | H33: 3.644636 | I33: 1149 | J33: 0 | K33: 608.4 | L33: 0

Sheet Sheet1 (hidden)
A1: Elevation | B1: Area
A2: 1180 | B2: 832221.9
A3: 1179 | B3: 789152.4
A4: 1178 | B4: 748099.3
A5: 1177 | B5: 708427.1
A6: 1176 | B6: 669164.3
A7: 1175 | B7: 631427.4
A8: 1174 | B8: 595171.2
A9: 1173 | B9: 561276.5
A10: 1172 | B10: 529322.6
A11: 1171 | B11: 497887.9
A12: 1170 | B12: 466811.4
A13: 1169 | B13: 436101.9
A14: 1168 | B14: 404822.8
A15: 1167 | B15: 373105.8
A16: 1166 | B16: 341479.6
A17: 1165 | B17: 312627.6
A18: 1164 | B18: 286180.9
A19: 1163 | B19: 260855.8
A20: 1162 | B20: 236541.5
A21: 1161 | B21: 212321.8
A22: 1160 | B22: 187351.3
A23: 1159 | B23: 161988.8
A24: 1158 | B24: 137123.6
A25: 1157 | B25: 114334.3
A26: 1156 | B26: 92400.2
A27: 1155 | B27: 72077.1
A28: 1154 | B28: 54984.3
A29: 1153 | B29: 40976.5
A30: 1152 | B30: 25768.5
A31: 1151 | B31: 9307.1
A32: 1150 | B32: 2264.1
A33: 1149 | B33: 608.4

Sheet Sheet3 (hidden)
A1: Row Labels | B1: Sum of Area
A2: 1149 | B2: 608.4
A3: 1150 | B3: 2264.1
A4: 1151 | B4: 9307.1
A5: 1152 | B5: 25768.5
A6: 1153 | B6: 40976.5
A7: 1154 | B7: 54984.3
A8: 1155 | B8: 72077.1
A9: 1156 | B9: 92400.2
A10: 1157 | B10: 114334.3
A11: 1158 | B11: 137123.6
A12: 1159 | B12: 161988.8
A13: 1160 | B13: 187351.3
A14: 1161 | B14: 212321.8
A15: 1162 | B15: 236541.5
A16: 1163 | B16: 260855.8
A17: 1164 | B17: 286180.9
A18: 1165 | B18: 312627.6
A19: 1166 | B19: 341479.6
A20: 1167 | B20: 373105.8
A21: 1168 | B21: 404822.8
A22: 1169 | B22: 436101.9
A23: 1170 | B23: 466811.4
A24: 1171 | B24: 497887.9
A25: 1172 | B25: 529322.6
A26: 1173 | B26: 561276.5
A27: 1174 | B27: 595171.2
A28: 1175 | B28: 631427.4
A29: 1176 | B29: 669164.3
A30: 1177 | B30: 708427.1
A31: 1178 | B31: 748099.3
A32: 1179 | B32: 789152.4
A33: 1180 | B33: 832221.9
A34: (blank)
A35: Grand Total | B35: 10792183.9

Sheet Sheet5
A1: =Sheet3!A1 -> Row Labels | B1: =Sheet3!B1 -> Sum of Area
A2: Elev | B2: Area | E2: Increment | F2: Ave Area | G2: Incremental Storage | H2: Cumulative Storage | J2: Prismoidal Increment | K2: Cumulative Storage | L2: Prism total / AEA total | M2: Prev Area /Area | N2: % increase | P2: Area | Q2: Ave Area | R2: Incremental Storage | S2: Cumulative Storage | T2: Prismoidal Increment | U2: Cumulative Storage
A3: (ft) | B3: (sq ft) | E3: (ft) | F3: (sq ft) | G3: (cu ft) | H3: (cu ft) | I3: (Ac ft) | J3: (Cu Ft) | K3: (cu ft) | P3: (Acres) | Q3: (Ac) | R3: (Ac Ft) | S3: (Ac Ft) | T3: (Cu Ft) | U3: (cu ft)
A4: ='Stage Storage'!M8 -> 1148.6 | B4: 0 | C4: =IF(A4>A5,"Check lowest elevation","") ->  | D4: TRUE | H4: 0 | I4: =H4/43560 -> 0 | K4: 0 | L4: =K4/H4 ->  | P4: =B4/43560 -> 0 | S4: 0 | U4: 0
A5: =Sheet3!A2 -> 1149 | B5: =ROUND(Sheet3!B2,0) -> 608 | C5: =IF(B5<B4,FALSE,TRUE) -> TRUE | D5: =IF(AND(C5,D4),TRUE,FALSE) -> TRUE | E5: =A5-A4 -> 0.4 | F5: =(B4+B5)/2 -> 304 | G5: =ROUND(E5*F5,0) -> 122 | H5: =H4+G5 -> 122 | I5: =H5/43560 -> 0.002800734619 | J5: =ROUND((B4+B5+(B4*B5)^0.5)*E5/3,0) -> 81 | K5: =K4+J5 -> 81 | L5: =K5/H5 -> 0.6639344262 | M5: =B4/B5 -> 0 | P5: =ROUND(B5/43560,2) -> 0.01 | Q5: =(P4+P5)/2 -> 0.005 | R5: =ROUND(Q5*E5,2) -> 0 | S5: =S4+R5 -> 0 | T5: =ROUND((P4+P5+(P4*P5)^0.5)*E5/3,2) -> 0 | U5: =U4+T5 -> 0
A6: =Sheet3!A3 -> 1150 | B6: =ROUND(Sheet3!B3,0) -> 2264 | C6: =IF(B6<B5,FALSE,TRUE) -> TRUE | D6: =IF(AND(C6,D5),TRUE,FALSE) -> TRUE | E6: =A6-A5 -> 1 | F6: =(B5+B6)/2 -> 1436 | G6: =ROUND(E6*F6,0) -> 1436 | H6: =H5+G6 -> 1558 | I6: =H6/43560 -> 0.03576675849 | J6: =ROUND((B5+B6+(B5*B6)^0.5)*E6/3,0) -> 1348 | K6: =K5+J6 -> 1429 | L6: 0.9172015404 | M6: =B5/B6 -> 0.2685512367 | N6: =(B6-B5)/B5 -> 2.723684211 | P6: =ROUND(B6/43560,2) -> 0.05 | Q6: =(P5+P6)/2 -> 0.03 | R6: =ROUND(Q6*E6,2) -> 0.03 | S6: =S5+R6 -> 0.03 | T6: =ROUND((P5+P6+(P5*P6)^0.5)*E6/3,2) -> 0.03 | U6: =U5+T6 -> 0.03
A7: =Sheet3!A4 -> 1151 | B7: =ROUND(Sheet3!B4,0) -> 9307 | C7: TRUE | D7: TRUE | E7: 1 | F7: 5785.5 | G7: 5786 | H7: 7344 | I7: 0.1685950413 | J7: 5387 | K7: 6816 | L7: 0.9281045752 | M7: 0.243257763 | N7: =(B7-B6)/B6 -> 3.110865724 | P7: 0.21 | Q7: 0.13 | R7: 0.13 | S7: 0.16 | T7: 0.12 | U7: 0.15
A8: =Sheet3!A5 -> 1152 | B8: =ROUND(Sheet3!B5,0) -> 25769 | C8: TRUE | D8: TRUE | E8: 1 | F8: 17538 | G8: 17538 | H8: 24882 | I8: 0.5712121212 | J8: 16854 | K8: 23670 | L8: 0.9512900892 | M8: 0.3611703985 | N8: 1.76877619 | P8: 0.59 | Q8: 0.4 | R8: 0.4 | S8: 0.56 | T8: 0.38 | U8: 0.53
A9: =Sheet3!A6 -> 1153 | B9: =ROUND(Sheet3!B6,0) -> 40977 | C9: TRUE | D9: TRUE | E9: 1 | F9: 33373 | G9: 33373 | H9: 58255 | I9: 1.337350781 | J9: 33080 | K9: 56750 | L9: 0.9741653077 | M9: 0.628864973 | N9: 0.5901664791 | P9: 0.94 | Q9: 0.765 | R9: 0.77 | S9: 1.33 | T9: 0.76 | U9: 1.29
A10: =Sheet3!A7 -> 1154 | B10: =ROUND(Sheet3!B7,0) -> 54984 | C10: TRUE | D10: TRUE | E10: 1 | F10: 47980.5 | G10: 47981 | H10: 106236 | I10: 2.438842975 | J10: 47809 | K10: 104559 | L10: 0.9842143906 | M10: 0.7452531646 | N10: 0.3418259023 | P10: 1.26 | Q10: 1.1 | R10: 1.1 | S10: 2.43 | T10: 1.1 | U10: 2.39
A11: =Sheet3!A8 -> 1155 | B11: =ROUND(Sheet3!B8,0) -> 72077 | C11: TRUE | D11: TRUE | E11: 1 | F11: 63530.5 | G11: 63531 | H11: 169767 | I11: 3.89731405 | J11: 63338 | K11: 167897 | L11: 0.9889849028 | M11: 0.7628508401 | N11: 0.3108722537 | P11: 1.65 | Q11: 1.455 | R11: 1.46 | S11: 3.89 | T11: 1.45 | U11: 3.84
A12: =Sheet3!A9 -> 1156 | B12: =ROUND(Sheet3!B9,0) -> 92400 | C12: TRUE | D12: TRUE | E12: 1 | F12: 82238.5 | G12: 82239 | H12: 252006 | I12: 5.785261708 | J12: 82028 | K12: 249925 | L12: 0.9917422601 | M12: 0.7800541126 | N12: 0.2819623458 | P12: 2.12 | Q12: 1.885 | R12: 1.89 | S12: 5.78 | T12: 1.88 | U12: 5.72
A13: =Sheet3!A10 -> 1157 | B13: =ROUND(Sheet3!B10,0) -> 114334 | C13: TRUE | D13: TRUE | E13: 1 | F13: 103367 | G13: 103367 | H13: 355373 | I13: 8.158241506 | J13: 103173 | K13: 353098 | L13: 0.9935982756 | M13: 0.808158553 | N13: 0.2373809524 | P13: 2.62 | Q13: 2.37 | R13: 2.37 | S13: 8.15 | T13: 2.37 | U13: 8.09
A14: =Sheet3!A11 -> 1158 | B14: =ROUND(Sheet3!B11,0) -> 137124 | C14: TRUE | D14: TRUE | E14: 1 | F14: 125729 | G14: 125729 | H14: 481102 | I14: 11.04458219 | J14: 125557 | K14: 478655 | L14: 0.9949137605 | M14: 0.8338000642 | N14: 0.1993282838 | P14: 3.15 | Q14: 2.885 | R14: 2.89 | S14: 11.04 | T14: 2.88 | U14: 10.97
A15: =Sheet3!A12 -> 1159 | B15: =ROUND(Sheet3!B12,0) -> 161989 | C15: TRUE | D15: TRUE | E15: 1 | F15: 149556.5 | G15: 149557 | H15: 630659 | I15: 14.47793848 | J15: 149384 | K15: 628039 | L15: 0.9958456155 | M15: 0.846501923 | N15: 0.1813322248 | P15: 3.72 | Q15: 3.435 | R15: 3.44 | S15: 14.48 | T15: 3.43 | U15: 14.4
A16: =Sheet3!A13 -> 1160 | B16: =ROUND(Sheet3!B13,0) -> 187351 | C16: TRUE | D16: TRUE | E16: 1 | F16: 174670 | G16: 174670 | H16: 805329 | I16: 18.48780992 | J16: 174516 | K16: 802555 | L16: 0.996555445 | M16: 0.8646284247 | N16: 0.1565661866 | P16: 4.3 | Q16: 4.01 | R16: 4.01 | S16: 18.49 | T16: 4.01 | U16: 18.41
A17: =Sheet3!A14 -> 1161 | B17: =ROUND(Sheet3!B14,0) -> 212322 | C17: TRUE | D17: TRUE | E17: 1 | F17: 199836.5 | G17: 199837 | H17: 1005166 | I17: 23.07543618 | J17: 199706 | K17: 1002261 | L17: 0.9971099301 | M17: 0.8823908968 | N17: 0.1332845835 | P17: 4.87 | Q17: 4.585 | R17: 4.59 | S17: 23.08 | T17: 4.58 | U17: 22.99
A18: =Sheet3!A15 -> 1162 | B18: =ROUND(Sheet3!B15,0) -> 236542 | C18: TRUE | D18: TRUE | E18: 1 | F18: 224432 | G18: 224432 | H18: 1229598 | I18: 28.22768595 | J18: 224323 | K18: 1226584 | L18: 0.9975487924 | M18: 0.8976080358 | N18: 0.1140720227 | P18: 5.43 | Q18: 5.15 | R18: 5.15 | S18: 28.23 | T18: 5.15 | U18: 28.14
A19: =Sheet3!A16 -> 1163 | B19: =ROUND(Sheet3!B16,0) -> 260856 | C19: TRUE | D19: TRUE | E19: 1 | F19: 248699 | G19: 248699 | H19: 1478297 | I19: 33.93702938 | J19: 248600 | K19: 1475184 | L19: 0.9978941985 | M19: 0.9067914865 | N19: 0.1027893566 | P19: 5.99 | Q19: 5.71 | R19: 5.71 | S19: 33.94 | T19: 5.71 | U19: 33.85
A20: =Sheet3!A17 -> 1164 | B20: =ROUND(Sheet3!B17,0) -> 286181 | C20: TRUE | D20: TRUE | E20: 1 | F20: 273518.5 | G20: 273519 | H20: 1751816 | I20: 40.21616162 | J20: 273421 | K20: 1748605 | L20: 0.9981670449 | M20: 0.9115070532 | N20: 0.09708421505 | P20: 6.57 | Q20: 6.28 | R20: 6.28 | S20: 40.22 | T20: 6.28 | U20: 40.13
A21: =Sheet3!A18 -> 1165 | B21: =ROUND(Sheet3!B18,0) -> 312628 | C21: TRUE | D21: TRUE | E21: 1 | F21: 299404.5 | G21: 299405 | H21: 2051221 | I21: 47.08955464 | J21: 299307 | K21: 2047912 | L21: 0.9983868145 | M21: 0.9154042504 | N21: 0.09241354248 | P21: 7.18 | Q21: 6.875 | R21: 6.88 | S21: 47.1 | T21: 6.87 | U21: 47
A22: =Sheet3!A19 -> 1166 | B22: =ROUND(Sheet3!B19,0) -> 341480 | C22: TRUE | D22: TRUE | E22: 1 | F22: 327054 | G22: 327054 | H22: 2378275 | I22: 54.59768136 | J22: 326948 | K22: 2374860 | L22: 0.9985640853 | M22: 0.915508961 | N22: 0.09228859859 | P22: 7.84 | Q22: 7.51 | R22: 7.51 | S22: 54.61 | T22: 7.51 | U22: 54.51
A23: =Sheet3!A20 -> 1167 | B23: =ROUND(Sheet3!B20,0) -> 373106 | C23: TRUE | D23: TRUE | E23: 1 | F23: 357293 | G23: 357293 | H23: 2735568 | I23: 62.8 | J23: 357176 | K23: 2732036 | L23: 0.9987088605 | M23: 0.9152358847 | N23: 0.09261450158 | P23: 8.57 | Q23: 8.205 | R23: 8.21 | S23: 62.82 | T23: 8.2 | U23: 62.71
A24: =Sheet3!A21 -> 1168 | B24: =ROUND(Sheet3!B21,0) -> 404823 | C24: TRUE | D24: TRUE | E24: 1 | F24: 388964.5 | G24: 388965 | H24: 3124533 | I24: 71.72940771 | J24: 388857 | K24: 3120893 | L24: 0.9988350259 | M24: 0.9216521789 | N24: 0.08500801381 | P24: 9.29 | Q24: 8.93 | R24: 8.93 | S24: 71.75 | T24: 8.93 | U24: 71.64
A25: =Sheet3!A22 -> 1169 | B25: =ROUND(Sheet3!B22,0) -> 436102 | C25: TRUE | D25: TRUE | E25: 1 | F25: 420462.5 | G25: 420463 | H25: 3544996 | I25: 81.38191001 | J25: 420366 | K25: 3541259 | L25: 0.998945838 | M25: 0.9282759538 | N25: 0.07726586681 | P25: 10.01 | Q25: 9.65 | R25: 9.65 | S25: 81.4 | T25: 9.65 | U25: 81.29
A26: =Sheet3!A23 -> 1170 | B26: =ROUND(Sheet3!B23,0) -> 466811 | C26: TRUE | D26: TRUE | E26: 1 | F26: 451456.5 | G26: 451457 | H26: 3996453 | I26: 91.74593664 | J26: 451369 | K26: 3992628 | L26: 0.9990429013 | M26: 0.9342153463 | N26: 0.07041701253 | P26: 10.72 | Q26: 10.365 | R26: 10.37 | S26: 91.77 | T26: 10.36 | U26: 91.65
A27: =Sheet3!A24 -> 1171 | B27: =ROUND(Sheet3!B24,0) -> 497888 | C27: TRUE | D27: TRUE | E27: 1 | F27: 482349.5 | G27: 482350 | H27: 4478803 | I27: 102.819169 | J27: 482266 | K27: 4474894 | L27: 0.9991272222 | M27: 0.9375823478 | N27: 0.06657298136 | P27: 11.43 | Q27: 11.075 | R27: 11.08 | S27: 102.85 | T27: 11.07 | U27: 102.72
A28: =Sheet3!A25 -> 1172 | B28: =ROUND(Sheet3!B25,0) -> 529323 | C28: TRUE | D28: TRUE | E28: 1 | F28: 513605.5 | G28: 513606 | H28: 4992409 | I28: 114.6099403 | J28: 513525 | K28: 4988419 | L28: 0.9992007866 | M28: 0.9406128205 | N28: 0.06313668938 | P28: 12.15 | Q28: 11.79 | R28: 11.79 | S28: 114.64 | T28: 11.79 | U28: 114.51
A29: =Sheet3!A26 -> 1173 | B29: =ROUND(Sheet3!B26,0) -> 561277 | C29: TRUE | D29: TRUE | E29: 1 | F29: 545300 | G29: 545300 | H29: 5537709 | I29: 127.1283058 | J29: 545222 | K29: 5533641 | L29: 0.9992654002 | M29: 0.9430691085 | N29: 0.0603676772 | P29: 12.89 | Q29: 12.52 | R29: 12.52 | S29: 127.16 | T29: 12.52 | U29: 127.03
A30: =Sheet3!A27 -> 1174 | B30: =ROUND(Sheet3!B27,0) -> 595171 | C30: TRUE | D30: TRUE | E30: 1 | F30: 578224 | G30: 578224 | H30: 6115933 | I30: 140.4025023 | J30: 578141 | K30: 6111782 | L30: 0.999321281 | M30: 0.9430516608 | N30: 0.0603872954 | P30: 13.66 | Q30: 13.275 | R30: 13.28 | S30: 140.44 | T30: 13.27 | U30: 140.3
A31: =Sheet3!A28 -> 1175 | B31: =ROUND(Sheet3!B28,0) -> 631427 | C31: TRUE | D31: TRUE | E31: 1 | F31: 613299 | G31: 613299 | H31: 6729232 | I31: 154.48191 | J31: 613210 | K31: 6724992 | L31: 0.9993699132 | M31: 0.9425808526 | N31: 0.06091694656 | P31: 14.5 | Q31: 14.08 | R31: 14.08 | S31: 154.52 | T31: 14.08 | U31: 154.38
A32: =Sheet3!A29 -> 1176 | B32: =ROUND(Sheet3!B29,0) -> 669164 | C32: TRUE | D32: TRUE | E32: 1 | F32: 650295.5 | G32: 650296 | H32: 7379528 | I32: 169.410652 | J32: 650204 | K32: 7375196 | L32: 0.9994129706 | M32: 0.9436057528 | N32: 0.05976462837 | P32: 15.36 | Q32: 14.93 | R32: 14.93 | S32: 169.45 | T32: 14.93 | U32: 169.31
A33: =Sheet3!A30 -> 1177 | B33: =ROUND(Sheet3!B30,0) -> 708427 | C33: TRUE | D33: TRUE | E33: 1 | F33: 688795.5 | G33: 688796 | H33: 8068324 | I33: 185.2232323 | J33: 688702 | K33: 8063898 | L33: 0.999451435 | M33: 0.9445772112 | N33: 0.05867470456 | P33: 16.26 | Q33: 15.81 | R33: 15.81 | S33: 185.26 | T33: 15.81 | U33: 185.12
A34: =Sheet3!A31 -> 1178 | B34: =ROUND(Sheet3!B31,0) -> 748099 | C34: TRUE | D34: TRUE | E34: 1 | F34: 728263 | G34: 728263 | H34: 8796587 | I34: 201.9418503 | J34: 728173 | K34: 8792071 | L34: 0.9994866191 | M34: 0.9469695856 | N34: 0.05600012422 | P34: 17.17 | Q34: 16.715 | R34: 16.72 | S34: 201.98 | T34: 16.71 | U34: 201.83
A35: =Sheet3!A32 -> 1179 | B35: =ROUND(Sheet3!B32,0) -> 789152 | C35: TRUE | D35: TRUE | E35: 1 | F35: 768625.5 | G35: 768626 | H35: 9565213 | I35: 219.5870753 | J35: 768534 | K35: 9560605 | L35: 0.9995182543 | M35: 0.9479783362 | N35: 0.05487642678 | P35: 18.12 | Q35: 17.645 | R35: 17.65 | S35: 219.63 | T35: 17.64 | U35: 219.47
A36: =Sheet3!A33 -> 1180 | B36: =ROUND(Sheet3!B33,0) -> 832222 | C36: TRUE | D36: TRUE | E36: 1 | F36: 810687 | G36: 810687 | H36: 10375900 | I36: 238.197888 | J36: 810592 | K36: 10371197 | L36: 0.9995467381 | M36: 0.9482469822 | N36: 0.05457757187 | P36: 19.11 | Q36: 18.615 | R36: 18.62 | S36: 238.25 | T36: 18.61 | U36: 238.08
A37: =Sheet3!A34 -> (blank) | B37: =ROUND(Sheet3!B34,0) -> 0 | C37: FALSE | D37: FALSE | F37: 416111 | N37: -1 | P37: 0 | Q37: 9.555
A38: =Sheet3!A35 -> Grand Total | B38: =ROUND(Sheet3!B35,0) -> 10792184 | C38: TRUE | D38: FALSE | F38: 5396092 | M38: 0 | P38: 247.75 | Q38: 123.875
A39: =Sheet3!A36 -> 0 | B39: =ROUND(Sheet3!B36,0) -> 0 | C39: FALSE | D39: FALSE | F39: 5396092 | N39: -1 | P39: 0 | Q39: 123.875
A40: =Sheet3!A37 -> 0 | B40: =ROUND(Sheet3!B37,0) -> 0 | C40: TRUE | D40: FALSE | E40: 0 | F40: 0 | G40: 0 | J40: 0 | P40: 0 | Q40: 0 | R40: 0 | T40: 0
A41: =Sheet3!A38 -> 0 | B41: =ROUND(Sheet3!B38,0) -> 0 | C41: TRUE | D41: FALSE | E41: 0 | F41: 0 | G41: 0 | J41: 0 | P41: 0 | Q41: 0 | R41: 0 | T41: 0
A42: =Sheet3!A39 -> 0 | B42: =ROUND(Sheet3!B39,0) -> 0 | C42: TRUE | D42: FALSE | E42: 0 | F42: 0 | G42: 0 | J42: 0 | P42: 0 | Q42: 0 | R42: 0 | T42: 0
A43: =Sheet3!A40 -> 0 | B43: =ROUND(Sheet3!B40,0) -> 0 | C43: TRUE | D43: FALSE | E43: 0 | F43: 0 | G43: 0 | J43: 0 | P43: 0 | Q43: 0 | R43: 0 | T43: 0
A44: =Sheet3!A41 -> 0 | B44: =ROUND(Sheet3!B41,0) -> 0 | C44: TRUE | D44: FALSE | E44: 0 | F44: 0 | G44: 0 | J44: 0 | P44: 0 | Q44: 0 | R44: 0 | T44: 0
A45: =Sheet3!A42 -> 0 | B45: =ROUND(Sheet3!B42,0) -> 0 | C45: TRUE | D45: FALSE | E45: 0 | F45: 0 | G45: 0 | J45: 0 | P45: 0 | Q45: 0 | R45: 0 | T45: 0
A46: =Sheet3!A43 -> 0 | B46: =ROUND(Sheet3!B43,0) -> 0 | C46: TRUE | D46: FALSE | E46: 0 | F46: 0 | G46: 0 | J46: 0 | P46: 0 | Q46: 0 | R46: 0 | T46: 0
A47: =Sheet3!A44 -> 0 | B47: =ROUND(Sheet3!B44,0) -> 0 | C47: TRUE | D47: FALSE | E47: 0 | F47: 0 | G47: 0 | J47: 0 | P47: 0 | Q47: 0 | R47: 0 | T47: 0
A48: =Sheet3!A45 -> 0 | B48: =ROUND(Sheet3!B45,0) -> 0 | C48: TRUE | D48: FALSE | E48: 0 | F48: 0 | G48: 0 | J48: 0 | P48: 0 | Q48: 0 | R48: 0 | T48: 0
A49: =Sheet3!A46 -> 0 | B49: =ROUND(Sheet3!B46,0) -> 0 | C49: TRUE | D49: FALSE | E49: 0 | F49: 0 | G49: 0 | J49: 0 | P49: 0 | Q49: 0 | R49: 0 | T49: 0
A50: =Sheet3!A47 -> 0 | B50: =ROUND(Sheet3!B47,0) -> 0 | C50: TRUE | D50: FALSE | E50: 0 | F50: 0 | G50: 0 | J50: 0 | P50: 0 | Q50: 0 | R50: 0 | T50: 0
A51: =Sheet3!A48 -> 0 | B51: =ROUND(Sheet3!B48,0) -> 0 | C51: TRUE | D51: FALSE | E51: 0 | F51: 0 | G51: 0 | J51: 0 | P51: 0 | Q51: 0 | R51: 0 | T51: 0
A52: =Sheet3!A49 -> 0 | B52: =ROUND(Sheet3!B49,0) -> 0 | C52: TRUE | D52: FALSE | E52: 0 | F52: 0 | G52: 0 | J52: 0 | P52: 0 | Q52: 0 | R52: 0 | T52: 0
A53: =Sheet3!A50 -> 0 | B53: =ROUND(Sheet3!B50,0) -> 0 | C53: TRUE | D53: FALSE | E53: 0 | F53: 0 | G53: 0 | J53: 0 | P53: 0 | Q53: 0 | R53: 0 | T53: 0
A54: End of Data
